bitfinex/quotes_SOLUSD_20251025
["timestamp","ask_amount","ask_price","bid_price","bid_amount"]
[1761412640799,0.7,192.25,192.21,1.56347489]
[1761412641121,0.7,192.25,192.23,15.61808574]
[1761412646320,0.7,192.25,192.21,7.48606354]
[1761412646618,0.7,192.25,192.22,15.61808574]
[1761412664930,0.7,192.25,192.22,16.33808574]
[1761412665325,0.7,192.25,192.21,6.76606354]
[1761412665524,0.7,192.25,192.21,6.02258865]
[1761412665723,0.7,192.25,192.23,15.61808574]
[1761412673210,5.90156428,192.25,192.23,15.61808574]
[1761412673507,5.90156428,192.25,192.21,0.82]
[1761412673704,5.90156428,192.25,192.22,15.61808574]
[1761412673905,5.20156428,192.25,192.22,15.61808574]
[1761412674136,0.66,192.24,192.22,15.61808574]
[1761412678837,5.20156428,192.25,192.22,15.61808574]
[1761412679038,5.86156428,192.25,192.22,16.27808574]
[1761412679427,5.86156428,192.25,192.22,0.66]
[1761412679738,5.86156428,192.25,192.23,15.61808574]
[1761412679921,11.58647521,192.24,192.23,15.61808574]
[1761412680123,11.58647521,192.24,192.21,0.1]
[1761412680325,22.88,192.23,192.22,0.66]
[1761412680536,22.88,192.23,192.21,13.10342244]
[1761412680730,22.88,192.23,192.21,0.1]
[1761412680930,22.88,192.23,192.21,0.76]
[1761412681239,22.88,192.23,192.21,13.86342244]
[1761412682340,22.88,192.23,192.21,0.76]
[1761412682541,22.88,192.23,192.22,13.86342244]
[1761412683044,22.88,192.23,192.21,0.76]
[1761412683341,22.88,192.23,192.21,14.62342244]
[1761412684321,22.88,192.23,192.21,0.76]
[1761412684621,22.88,192.23,192.22,15.61889886]
[1761412684826,28.08210164,192.23,192.22,15.61889886]
[1761412685050,28.08210164,192.23,192.21,0.1]
[1761412685423,0.71,192.22,192.21,0.1]
[1761412686041,0.71,192.22,192.21,15.71889886]
[1761412689138,28.08210164,192.23,192.21,15.71889886]
[1761412689339,28.79210164,192.23,192.21,15.71889886]
[1761412689647,28.79210164,192.23,192.21,0.1]
[1761412689855,28.79210164,192.23,192.22,15.61971207]
[1761412705269,28.08210164,192.23,192.22,15.61971207]
[1761412706165,28.75210164,192.23,192.22,15.61971207]
[1761412712975,28.08210164,192.23,192.22,15.61971207]
[1761412715970,28.75210164,192.23,192.22,15.61971207]
[1761412716571,15.61971207,192.28,192.22,16.32971207]
[1761412716877,0.67,192.3,192.26,2.28690048]
[1761412717177,22.88,192.29,192.26,2.99690048]
[1761412717380,22.88,192.29,192.27,13.16337569]
[1761412717583,23.55,192.29,192.27,10.87647521]
[1761412717786,23.55,192.29,192.26,2.99690048]
[1761412718085,5.2007489,192.28,192.27,15.61564687]
[1761412719577,21.15952164,192.28,192.21,0.1]
[1761412719785,2.28690048,192.26,192.21,0.81]
[1761412719972,25.16690048,192.26,192.25,15.6172727]
[1761412720159,30.36819039,192.26,192.25,15.6172727]
[1761412720784,31.03819039,192.26,192.25,15.6172727]
[1761412721669,31.03819039,192.26,192.21,0.1]
[1761412721974,2.95690048,192.25,192.22,15.6172727]
[1761412722181,5.20183104,192.24,192.22,15.6172727]
[1761412722395,5.87183104,192.24,192.22,15.6172727]
[1761412722685,0.67,192.23,192.22,15.6172727]
[1761412724996,5.20183104,192.24,192.22,15.6172727]
[1761412725181,5.87183104,192.24,192.22,15.6172727]
[1761412726291,5.87210164,192.23,192.22,15.6172727]
[1761412728292,5.20210164,192.23,192.22,15.6172727]
[1761412728593,5.20183104,192.24,192.22,15.6172727]
[1761412729095,0.67,192.23,192.22,15.6172727]
[1761412729599,5.87210164,192.23,192.22,15.6172727]
[1761412732399,5.20183104,192.24,192.22,15.6172727]
[1761412732592,5.87183104,192.24,192.22,15.6172727]
[1761412733498,5.20183104,192.24,192.22,15.6172727]
[1761412733701,5.87183104,192.24,192.22,15.6172727]
[1761412733881,0.67,192.23,192.22,15.6172727]
[1761412736186,5.87183104,192.24,192.22,15.6172727]
[1761412739492,5.20183104,192.24,192.22,16.3172727]
[1761412740005,5.91183104,192.24,192.22,15.6172727]
[1761412740586,0.71,192.23,192.22,15.6172727]
[1761412741503,5.91210164,192.23,192.22,15.6172727]
[1761412741700,5.91210164,192.23,192.21,0.1]
[1761412741900,7.48900212,192.23,192.21,0.1]
[1761412742205,8.19900212,192.23,192.21,15.7172727]
[1761412742405,2.99690048,192.22,192.21,15.7172727]
[1761412742582,2.99690048,192.22,192.21,0.1]
[1761412742784,13.87337569,192.22,192.21,0.1]
[1761412743806,21.46264845,192.22,192.21,0.1]
[1761412746502,19.07574797,192.22,192.21,0.1]
[1761412749206,16.07884749,192.22,192.21,0.1]
[1761412749407,16.07884749,192.22,192.21,2.48690048]
[1761412750186,16.78884749,192.22,192.21,2.48690048]
[1761412751511,19.07574797,192.22,192.21,2.48690048]
[1761412751813,19.07574797,192.22,192.21,0.1]
[1761412752916,18.25328255,192.22,192.21,0.1]
[1761412753504,16.07884749,192.22,192.21,0.1]
[1761412755217,16.78884749,192.22,192.21,0.1]
[1761412755604,16.07884749,192.22,192.21,0.1]
[1761412756095,16.07884749,192.22,192.21,0.8]
[1761412757615,16.07884749,192.22,192.21,0.1]
[1761412761535,5.20237228,192.22,192.21,0.1]
[1761412763823,5.20237228,192.22,192.21,0.76]
[1761412764008,28.08213982,192.23,192.21,0.76]
[1761412770927,28.08213982,192.23,192.21,0.1]
[1761412773932,28.08213982,192.23,192.21,0.76]
[1761412775729,28.08213982,192.23,192.21,0.1]
[1761412775730,13.04091027,192.22,192.21,0.1]
[1761412777425,18.24328255,192.22,192.21,0.1]
[1761412792851,16.07884749,192.22,192.21,0.82]
[1761412793032,53.44328255,192.22,192.21,0.1]
[1761412793222,54.13328255,192.22,192.21,0.1]
[1761412794052,53.44328255,192.22,192.21,0.1]
[1761412795445,51.97884749,192.22,192.21,0.1]
[1761412795622,53.44328255,192.22,192.21,0.1]
[1761412797456,53.44328255,192.22,192.21,0.82]
[1761412797624,53.44328255,192.22,192.21,0.1]
[1761412800231,54.14328255,192.22,192.21,0.1]
[1761412803557,42.56680734,192.22,192.21,0.8]
[1761412803940,42.56680734,192.22,192.21,0.1]
[1761412805764,53.44328255,192.22,192.21,0.1]
[1761412809942,54.14328255,192.22,192.21,0.1]
[1761412810663,51.97884749,192.22,192.21,0.1]
[1761412810858,53.44328255,192.22,192.21,0.1]
[1761412813166,54.14328255,192.22,192.21,0.1]
[1761412813862,53.44328255,192.22,192.21,0.1]
[1761412814664,54.26714033,192.22,192.21,0.1]
[1761412815249,54.96714033,192.22,192.21,0.1]
[1761412815865,54.26714033,192.22,192.21,0.1]
[1761412818375,54.96714033,192.22,192.21,0.1]
[1761412819055,57.05020243,192.22,192.21,0.1]
[1761412819370,54.96714033,192.22,192.21,0.1]
[1761412822567,64.98160356,192.22,192.21,0.1]
[1761412857711,64.28160356,192.22,192.21,0.79]
[1761412858035,64.28160356,192.22,192.21,0.1]
[1761412858336,64.99160356,192.22,192.21,0.1]
[1761412860431,64.28160356,192.22,192.21,0.1]
[1761412861014,64.99160356,192.22,192.21,0.1]
[1761412862135,64.28160356,192.22,192.21,0.1]
[1761412864541,18.36714033,192.22,192.21,0.78]
[1761412865141,16.07884749,192.22,192.21,0.78]
[1761412869226,5.20237228,192.22,192.21,0.78]
[1761412871343,7.49066512,192.22,192.21,0.78]
[1761412876744,6.66666147,192.22,192.21,0.78]
[1761412879044,6.66666147,192.22,192.21,0.1]
[1761412879737,6.66666147,192.22,192.21,0.78]
[1761412884948,5.20237228,192.22,192.21,0.78]
[1761412885251,6.66666147,192.22,192.21,0.78]
[1761412887151,15.62133874,192.23,192.21,2.24428919]
[1761412887351,1.46428919,192.32,192.22,1.46428919]
[1761412887548,1.46428919,192.32,192.26,1.46428919]
[1761412887735,22.88,192.3,192.26,1.46428919]
[1761412888053,22.88,192.3,192.27,8.41228]
[1761412888239,28.08037132,192.3,192.27,8.41228]
[1761412888550,28.08037132,192.3,192.28,0.72]
[1761412888750,28.08037132,192.3,192.28,9.13228]
[1761412889151,28.08037132,192.3,192.29,0.72]
[1761412889922,5.1999376,192.31,192.29,0.72]
[1761412890128,28.0799376,192.31,192.29,0.72]
[1761412891152,29.54422679,192.31,192.29,0.72]
[1761412892460,28.0799376,192.31,192.29,0.72]
[1761412892663,29.54422679,192.31,192.29,0.72]
[1761412892959,28.0799376,192.31,192.29,0.72]
[1761412894258,28.0799376,192.31,192.28,8.41228]
[1761412894465,28.7599376,192.31,192.28,9.13228]
[1761412895052,1.46428919,192.29,192.25,0.72]
[1761412895255,1.46428919,192.28,192.25,9.85228]
[1761412895749,2.14428919,192.28,192.25,9.13228]
[1761412896049,2.14428919,192.28,192.25,9.85228]
[1761412896241,1.46428919,192.27,192.25,9.85228]
[1761412896849,6.66539716,192.27,192.25,9.13228]
[1761412897052,6.66539716,192.27,192.25,9.85228]
[1761412897250,1.46428919,192.26,192.25,9.85228]
[1761412897444,1.46428919,192.26,192.25,9.13228]
[1761412897763,2.14428919,192.26,192.22,0.72]
[1761412898057,1.46428919,192.25,192.24,5.20110797]
[1761412898366,2.14428919,192.26,192.24,5.20110797]
[1761412898753,7.34572469,192.26,192.24,5.20110797]
[1761412899060,7.34572469,192.26,192.23,0.72]
[1761412899247,7.34572469,192.26,192.23,6.02259507]
[1761412899453,6.66572469,192.26,192.24,0.72]
[1761412900538,5.2014355,192.26,192.24,0.72]
[1761412910361,5.20101939,192.27,192.23,5.30259507]
[1761412910662,0.72,192.26,192.23,5.97259507]
[1761412911867,5.20101939,192.27,192.23,5.30259507]
[1761412912067,5.20101939,192.27,192.24,0.67]
[1761412912549,5.92101939,192.27,192.24,0.67]
[1761412917860,5.92101939,192.27,192.24,5.97259507]
[1761412918058,5.20101939,192.27,192.25,0.67]
[1761412921380,5.9007489,192.28,192.25,0.67]
[1761412924574,5.2007489,192.28,192.25,0.67]
[1761412926576,18.20234983,192.29,192.25,0.67]
[1761412926766,6.76688426,192.27,192.25,0.67]
[1761412928582,5.20078713,192.28,192.25,0.67]
[1761412928757,5.20078713,192.28,192.25,2.13428919]
[1761412928958,17.16998262,192.28,192.25,2.13428919]
[1761412929158,17.16998262,192.28,192.26,0.71]
[1761412933693,5.20047844,192.29,192.26,0.71]
[1761412939165,5.90047844,192.29,192.26,0.71]
[1761412944994,5.20047844,192.29,192.26,0.71]
[1761412946387,5.91047844,192.29,192.26,0.71]
[1761412950190,5.20047844,192.29,192.26,0.71]
[1761412951696,5.20047844,192.29,192.26,2.99575053]
[1761412954475,5.20047844,192.29,192.27,0.68]
[1761412955497,5.20047844,192.29,192.26,2.28575053]
[1761412955685,5.20047844,192.29,192.26,2.96575053]
[1761412956894,5.20047844,192.29,192.26,0.68]
[1761412957095,5.91047844,192.29,192.26,0.68]
[1761412957400,0.71,192.28,192.23,0.68]
[1761412957778,0.71,192.28,192.23,2.96575053]
[1761412958186,0.71,192.28,192.24,0.68]
[1761412958497,5.91084691,192.28,192.24,0.68]
[1761412963804,5.91084691,192.28,192.24,2.96575053]
[1761412964304,0.71,192.27,192.24,0.68]
[1761412964499,0.71,192.27,192.24,2.96575053]
[1761412968006,5.20047844,192.29,192.24,2.96575053]
[1761412968195,0.71,192.27,192.24,2.96575053]
[1761412968707,0.71,192.28,192.25,0.68]
[1761412969810,5.91083967,192.28,192.25,0.68]
[1761412973307,5.20047844,192.29,192.24,2.28575053]
[1761412973499,0.71,192.28,192.25,0.67]
[1761412973701,0.71,192.28,192.24,2.95575053]
[1761412974313,5.91088661,192.28,192.24,2.95575053]
[1761412975001,5.20088661,192.28,192.24,2.95575053]
[1761412975202,0.71,192.27,192.24,2.95575053]
[1761412975396,35.88063206,192.3,192.24,2.95575053]
[1761412975603,0.71,192.28,192.25,0.67]
[1761412976617,5.91081178,192.28,192.25,0.67]
[1761412979323,0.71,192.27,192.24,2.95575053]
[1761412979620,5.20047844,192.29,192.24,2.95575053]
[1761412979822,0.7,192.28,192.25,0.67]
[1761412980622,5.20047844,192.29,192.25,2.95575053]
[1761412981003,5.20047844,192.29,192.26,0.67]
[1761412981320,5.20047844,192.29,192.26,2.95575053]
[1761412982024,5.90047844,192.29,192.26,2.95575053]
[1761412982523,5.90047844,192.29,192.26,0.67]
[1761412982723,5.90047844,192.29,192.26,2.95575053]
[1761412983922,5.20047844,192.29,192.26,2.28575053]
[1761412984123,22.88,192.3,192.27,2.95575053]
[1761412984124,28.08025968,192.3,192.27,2.95575053]
[1761412984295,28.78025968,192.3,192.27,2.95575053]
[1761412984824,28.78025968,192.3,192.27,0.67]
[1761412987128,28.78025968,192.3,192.27,2.95575053]
[1761412988330,28.78025968,192.3,192.27,0.67]
[1761412988506,28.78025968,192.3,192.27,2.95575053]
[1761412992408,28.78025968,192.3,192.27,0.67]
[1761412994330,33.98184441,192.3,192.27,0.67]
[1761412997428,28.78025968,192.3,192.27,0.67]
[1761412998126,28.08025968,192.3,192.27,2.95575053]
[1761412998349,5.19995587,192.31,192.29,2.28575053]
[1761412998635,5.89995587,192.31,192.28,2.28575053]
[1761412998821,5.89995587,192.31,192.28,2.95575053]
[1761412999023,5.19995587,192.31,192.28,2.28575053]
[1761412999328,33.98125917,192.32,192.29,0.67]
[1761413002932,33.98125917,192.32,192.28,6.66401908]
[1761413003137,33.94125917,192.32,192.28,5.86158473]
[1761413003631,33.28125917,192.32,192.28,5.86158473]
[1761413003848,5.86000894,192.31,192.28,5.86158473]
[1761413004835,5.20000894,192.31,192.28,5.20158473]
[1761413005033,0.66,192.3,192.26,2.12243435]
[1761413005341,0.66,192.3,192.27,5.20158473]
[1761413005524,0.66,192.3,192.27,5.86158473]
[1761413008346,5.8603638,192.3,192.27,5.20158473]
[1761413008548,0.66,192.29,192.27,5.20158473]
[1761413009024,5.2003638,192.3,192.27,5.20158473]
[1761413009225,0.66,192.29,192.26,0.66]
[1761413009458,5.8603638,192.3,192.26,7.32401908]
[1761413009925,5.8603638,192.3,192.27,0.66]
[1761413016150,12.52438288,192.3,192.27,0.66]
[1761413022057,6.66401908,192.3,192.29,1.46243435]
[1761413022355,22.88,192.32,192.29,1.46243435]
[1761413022552,22.88,192.32,192.29,0.66]
[1761413022736,23.54,192.32,192.29,0.66]
[1761413023370,28.73969333,192.32,192.29,0.66]
[1761413023536,28.73969333,192.32,192.28,5.20158473]
[1761413023877,5.85997484,192.31,192.28,5.20158473]
[1761413024232,0.66,192.3,192.28,5.20158473]
[1761413024958,0.66,192.3,192.27,1.46243435]
[1761413025129,0.66,192.3,192.27,2.12243435]
[1761413025332,0.66,192.3,192.27,7.98369033]
[1761413027258,5.19997484,192.31,192.27,7.32369033]
[1761413027556,5.19997484,192.31,192.28,2.12243435]
[1761413028756,5.85997484,192.31,192.28,2.12243435]
[1761413029056,5.85997484,192.31,192.28,1.46243435]
[1761413029449,5.85997484,192.31,192.28,2.12243435]
[1761413029641,5.19997484,192.31,192.28,2.12243435]
[1761413029853,5.19997484,192.31,192.28,6.52125598]
[1761413030053,5.19997484,192.31,192.28,7.98369033]
[1761413031560,5.19997484,192.31,192.28,6.52125598]
[1761413031743,5.19997484,192.31,192.28,8.03369033]
[1761413033744,5.90997484,192.31,192.28,8.03369033]
[1761413037167,0.71,192.31,192.28,8.03369033]
[1761413042973,0.71,192.31,192.28,6.57125598]
[1761413045781,0.71,192.31,192.28,42.43125598]
[1761413046983,0.71,192.31,192.28,6.57125598]
[1761413047283,0.71,192.31,192.28,42.43125598]
[1761413049883,0.71,192.31,192.28,6.57125598]
[1761413050385,0.71,192.31,192.28,42.43125598]
[1761413054303,5.91005726,192.31,192.28,5.86125598]
[1761413054592,0.68,192.3,192.27,35.86]
[1761413055490,0.68,192.3,192.27,43.63910354]
[1761413062897,5.88029626,192.3,192.27,43.63910354]
[1761413063398,0.72,192.29,192.27,43.63910354]
[1761413063793,0.72,192.29,192.27,7.77910354]
[1761413063996,2.28563779,192.28,192.24,7.77910354]
[1761413064299,5.20029626,192.28,192.25,35.86]
[1761413064472,0.72,192.27,192.25,35.86]
[1761413087525,5.92106822,192.27,192.24,44.32910354]
[1761413088719,5.92106822,192.27,192.24,8.46910354]
[1761413088919,5.92106822,192.27,192.24,44.32910354]
[1761413090018,5.92106822,192.27,192.23,51.14615781]
[1761413090206,0.68,192.26,192.23,36.53]
[1761413095422,5.20106822,192.27,192.23,36.53]
[1761413095625,5.88106822,192.27,192.23,36.53]
[1761413096303,0.68,192.26,192.23,36.53]
[1761413099128,5.20106822,192.27,192.23,35.86]
[1761413099311,5.88106822,192.27,192.24,0.67]
[1761413102827,5.88106822,192.27,192.23,35.86]
[1761413103031,5.88106822,192.27,192.23,36.54]
[1761413103830,0.72,192.26,192.23,36.54]
[1761413104005,0.72,192.26,192.23,41.74206965]
[1761413106631,0.72,192.26,192.24,15.6172727]
[1761413114244,0.72,192.26,192.23,35.86]
[1761413114428,0.72,192.26,192.23,36.54]
[1761413114626,0.72,192.26,192.23,41.74105915]
[1761413115141,0.72,192.26,192.23,5.88105915]
[1761413115315,0.72,192.26,192.23,41.74105915]
[1761413117842,0.72,192.26,192.23,46.94315612]
[1761413149170,0.72,192.26,192.23,46.26315612]
[1761413149468,0.72,192.26,192.23,46.97315612]
[1761413159072,0.72,192.26,192.23,48.4363663]
[1761413160263,0.72,192.26,192.24,1.46321018]
[1761413160772,0.72,192.26,192.23,46.97315612]
[1761413161086,0.72,192.26,192.24,1.46321018]
[1761413164377,0.72,192.26,192.23,48.4363663]
[1761413166381,0.72,192.26,192.23,43.23530715]
[1761413166674,0.72,192.26,192.24,5.20075783]
[1761413171168,16.07695365,192.29,192.24,5.20075783]
[1761413171369,16.76695365,192.29,192.24,5.88075783]
[1761413171559,0.69,192.28,192.24,5.88075783]
[1761413172476,5.89076019,192.28,192.24,5.88075783]
[1761413172679,0.69,192.27,192.24,5.88075783]
[1761413173460,5.89076019,192.28,192.24,5.88075783]
[1761413173660,0.69,192.27,192.24,5.88075783]
[1761413174484,0.69,192.27,192.24,0.68]
[1761413174781,0.69,192.27,192.25,10.87647521]
[1761413210018,5.89106371,192.27,192.25,10.87647521]
[1761413211692,5.2007489,192.28,192.25,10.87647521]
[1761413211893,5.9007489,192.28,192.25,10.87647521]
[1761413212117,0.7,192.27,192.25,10.87647521]
[1761413213115,5.9007489,192.28,192.25,10.87647521]
[1761413213323,0.7,192.27,192.25,10.87647521]
[1761413217219,11.57647521,192.29,192.26,0.68]
[1761413217911,16.77696692,192.29,192.27,10.87647521]
[1761413220921,16.07696692,192.29,192.27,10.87647521]
[1761413221149,0.67,192.28,192.27,10.87647521]
[1761413234842,0.67,192.28,192.21,0.77]
[1761413234843,10.87647521,192.27,192.21,0.77]
[1761413235042,13.16256231,192.27,192.21,0.77]
[1761413235216,0.67,192.26,192.25,10.87647521]
[1761413236151,5.87128991,192.26,192.25,10.87647521]
[1761413236617,8.15737701,192.26,192.25,10.87647521]
[1761413237231,19.03385222,192.26,192.25,10.87647521]
[1761413237444,19.03385222,192.26,192.21,0.1]
[1761413237736,2.2860871,192.24,192.22,10.87647521]
[1761413238113,0.67,192.23,192.22,10.87647521]
[1761413238643,5.87183104,192.24,192.22,10.87647521]
[1761413246641,33.75647521,192.27,192.23,0.67]
[1761413246855,5.20143766,192.26,192.23,0.67]
[1761413247355,5.20143766,192.26,192.24,10.87647521]
[1761413247843,5.20143766,192.26,192.24,11.54647521]
[1761413248245,5.20143766,192.26,192.24,0.67]
[1761413248447,5.20143766,192.26,192.25,11.54647521]
[1761413255361,5.20080196,192.28,192.25,12.21647521]
[1761413255563,5.20080196,192.28,192.26,0.67]
[1761413256549,5.20080196,192.28,192.27,11.54647521]
[1761413273965,5.85080196,192.28,192.27,11.54647521]
[1761413275267,5.20080196,192.28,192.27,11.54647521]
[1761413277778,5.85080196,192.28,192.27,11.54647521]
[1761413287187,5.20080196,192.28,192.27,11.54647521]
[1761413291987,5.91080196,192.28,192.27,11.54647521]
[1761413294892,5.91080196,192.28,192.25,0.7]
[1761413295185,5.91080196,192.28,192.25,12.24647521]
[1761413295589,5.20080196,192.28,192.25,12.24647521]
[1761413296291,5.20080196,192.28,192.25,0.7]
[1761413296787,5.91080196,192.28,192.25,0.7]
[1761413296981,5.20080196,192.28,192.25,0.7]
[1761413298289,5.20080196,192.28,192.25,12.94647521]
[1761413299483,5.20080196,192.28,192.25,12.8994359]
[1761413301490,5.86080196,192.28,192.25,0.65296069]
[1761413301895,5.86080196,192.28,192.24,13.5794359]
[1761413303291,5.86080196,192.28,192.24,12.8994359]
[1761413303475,5.86080196,192.28,192.25,0.68]
[1761413304294,5.20080196,192.28,192.24,12.8994359]
[1761413304494,0.66,192.27,192.24,12.8994359]
[1761413304674,5.86104306,192.27,192.24,12.8994359]
[1761413304870,5.86104306,192.27,192.24,13.5794359]
[1761413305493,2.12344531,192.26,192.21,0.78]
[1761413305795,12.33992052,192.25,192.21,0.78]
[1761413305991,5.20104306,192.27,192.21,0.78]
[1761413306204,5.86104306,192.27,192.22,1.46344531]
[1761413306390,5.86104306,192.27,192.22,15.04288121]
[1761413306583,5.86104306,192.27,192.23,0.68]
[1761413310099,8.14755336,192.27,192.23,0.68]
[1761413311682,5.86136668,192.26,192.23,0.68]
[1761413313706,5.20136668,192.26,192.23,0.68]
[1761413315004,5.86136668,192.26,192.23,0.68]
[1761413315310,5.20136668,192.26,192.23,0.68]
[1761413322316,0.66,192.26,192.23,0.68]
[1761413323914,5.86132081,192.26,192.23,0.68]
[1761413325320,5.20101939,192.27,192.23,0.68]
[1761413325521,5.86101939,192.27,192.23,0.68]
[1761413326821,5.20101939,192.27,192.22,13.5794359]
[1761413327123,0.66,192.26,192.23,0.68]
[1761413327318,0.66,192.26,192.22,13.5794359]
[1761413327527,0.66,192.26,192.22,14.2594359]
[1761413328024,5.86145353,192.26,192.22,14.2594359]
[1761413328197,0.66,192.25,192.22,14.2594359]
[1761413330629,5.86160945,192.25,192.22,13.5794359]
[1761413330807,5.86160945,192.25,192.21,0.1]
[1761413331002,0.69,192.24,192.22,5.20145353]
[1761413331423,0.69,192.24,192.21,0.8]
[1761413331718,0.69,192.24,192.21,6.00160945]
[1761413337709,0.69,192.24,192.21,5.30160945]
[1761413340329,5.89185192,192.24,192.21,5.30160945]
[1761413340825,0.67,192.23,192.21,0.1]
[1761413343632,13.16298551,192.22,192.21,0.1]
[1761413344103,13.83298551,192.22,192.21,0.1]
[1761413345533,19.03535779,192.22,192.21,0.1]
[1761413352215,54.87535779,192.22,192.21,0.1]
[1761413365343,52.58884749,192.22,192.21,0.1]
[1761413365566,54.87535779,192.22,192.21,0.1]
[1761413368872,54.0533533,192.22,192.21,0.1]
[1761413376269,51.91884749,192.22,192.21,0.1]
[1761413376572,54.0633533,192.22,192.21,0.1]
[1761413377571,5.20237228,192.22,192.21,0.79]
[1761413395585,7.34687809,192.22,192.21,0.1]
[1761413395788,18.2233533,192.22,192.21,0.1]
[1761413396306,54.0633533,192.22,192.21,0.1]
[1761413405596,52.59884749,192.22,192.21,0.1]
[1761413405904,76.9333533,192.22,192.21,0.1]
[1761413406274,28.08237228,192.22,192.21,0.1]
[1761413406599,29.54687809,192.22,192.21,0.77]
[1761413408099,29.54687809,192.22,192.21,0.1]
[1761413412509,29.54687809,192.22,192.21,0.77]
[1761413416908,29.54687809,192.22,192.21,0.1]
[1761413417407,29.54687809,192.22,192.21,0.77]
[1761413418106,28.08237228,192.22,192.21,0.77]
[1761413430012,28.08237228,192.22,192.21,0.1]
[1761413430890,28.08237228,192.22,192.21,0.78]
[1761413432518,5.20237228,192.22,192.21,0.78]
[1761413433994,18.20646545,192.24,192.21,0.78]
[1761413434198,2.28765752,192.23,192.21,0.78]
[1761413435109,5.20237228,192.22,192.21,0.78]
[1761413436326,5.20210164,192.23,192.21,0.78]
[1761413442131,48.86276246,192.27,192.21,3.06765752]
[1761413442308,13.00276246,192.27,192.21,3.06765752]
[1761413442626,13.00276246,192.27,192.22,16.2972727]
[1761413443111,13.00276246,192.27,192.22,18.58493022]
[1761413443426,18.20378185,192.27,192.23,0.68]
[1761413446305,18.92378185,192.27,192.23,0.68]
[1761413448236,18.20378185,192.27,192.23,0.68]
[1761413449514,18.92378185,192.27,192.23,0.68]
[1761413450640,18.20378185,192.27,192.23,0.68]
[1761413451814,18.92378185,192.27,192.23,0.68]
[1761413452927,5.2007147,192.29,192.25,2.28765752]
[1761413453344,5.2007147,192.29,192.26,0.72]
[1761413453519,5.9207147,192.29,192.26,0.72]
[1761413453719,5.9207147,192.29,192.26,16.33483409]
[1761413455636,2.28765752,192.29,192.26,15.61483409]
[1761413455841,0.72,192.28,192.24,0.72]
[1761413456027,0.72,192.28,192.25,15.61483409]
[1761413457137,0.72,192.28,192.25,16.33483409]
[1761413457519,2.28765752,192.29,192.25,16.33483409]
[1761413457817,0.72,192.29,192.25,16.33483409]
[1761413458438,5.92072123,192.29,192.26,0.72]
[1761413458740,5.92072123,192.29,192.26,16.33483409]
[1761413461544,5.20072123,192.29,192.27,0.67]
[1761413461841,22.88,192.31,192.27,0.67]
[1761413462224,22.88,192.31,192.27,16.28402139]
[1761413462544,28.07999517,192.31,192.27,16.28402139]
[1761413462838,28.07999517,192.31,192.28,0.67]
[1761413465849,28.07999517,192.31,192.28,16.28320877]
[1761413466254,28.07999517,192.31,192.29,0.67]
[1761413467039,5.19968793,192.32,192.29,0.67]
[1761413468241,5.85945333,192.33,192.29,0.67]
[1761413470945,5.19912654,192.34,192.29,16.28158379]
[1761413471144,7.48678406,192.34,192.29,16.28158379]
[1761413471370,8.14678406,192.34,192.3,0.67]
[1761413471964,0.66,192.33,192.3,0.67]
[1761413472350,8.14678406,192.34,192.3,0.67]
[1761413473261,5.85912654,192.34,192.3,0.67]
[1761413476059,5.85912654,192.34,192.3,16.28158379]
[1761413476748,5.85912654,192.34,192.3,15.61158379]
[1761413476950,5.85912654,192.34,192.31,0.67]
[1761413477353,5.19912654,192.34,192.31,0.67]
[1761413477672,5.19912654,192.34,192.31,16.28077143]
[1761413479353,5.85958263,192.33,192.29,2.95765752]
[1761413479542,5.85958263,192.33,192.3,0.67]
[1761413479865,5.85958263,192.33,192.3,16.28077143]
[1761413480075,5.19958263,192.33,192.31,0.69]
[1761413480366,28.07908815,192.35,192.31,0.69]
[1761413481264,28.74908815,192.35,192.31,16.29995915]
[1761413481464,5.19918487,192.34,192.32,0.69]
[1761413482841,5.19918487,192.34,192.31,15.60995915]
[1761413483047,5.86918487,192.34,192.31,16.29995915]